[Event "4NCL 2022-2023"]
[Site "Daventry"]
[Date "2023.01.14"]
[Round "3.39"]
[White "Serbanescu, Diana-Maria"]
[Black "Ledger, Stephen C"]
[Result "0-1"]
[ECO "B22"]
[WhiteElo "1995"]
[BlackElo "1980"]
[Annotator "TA"]
[PlyCount "96"]
[EventDate "2022.10.20"]
[EventType "team-tourn"]
[EventCountry "ENG"]
[SourceTitle "playchess.com"]
[Source "ChessBase"]
[SourceQuality "1"]
[TimeControl "40/6000+30:2400+30"]

{[%evp 10,96,24,-12,35,31,47,51,44,40,56,48,67,58,81,52,71,35,46,43,50,61,57,52,61,60,58,33,41,0,0,-32,0,0,0,-83,0,0,29,43,111,-456,-436,-583,-495,-558,-533,-550,-554,-560,-533,-623,-626,-548,-598,-660,-547,-695,-688,-680,-670,-638,-602,-724,-512,-687,-695,-690,-687,-683,-666,-693,-612,-601,-520,-669,-595,-740,-627,-1040,-1040,-1053,-1028,-1674,-1664,-1418,-850,-29986,-29987]} 1. e4 {[%emt 0:00:03]} c5 {[%emt 0:01:13]} 2. c3 {[%emt 0:00:08]} d5 {[%emt 0:00:55]} 3. exd5 {[%emt 0:00:20]} Qxd5 {[%emt 0:00:18]} 4. d4 {[%emt 0:00:45]} Nf6 {[%emt 0:01:38]} 5. Nf3 {[%emt 0:04:42]} e6 {[%emt 0:02:25]} 6. Nbd2 {[%emt 0:08:06]} Nc6 {[%emt 0:08:44] B22: Sicilian: 2 c3.} (6... cxd4 $11 7. Bc4 Qh5) 7. Bc4 $14 {[%emt 0:07:57]} Qd6 {[%emt 0:04:33][%cal Rc5d4]} 8. dxc5 {[%emt 0:13:41]} Qxc5 {[%emt 0:02:06] White is slightly better.} 9. Qe2 {[%emt 0:03:03]} Be7 {[%emt 0:05:34]} 10. O-O {[%emt 0:03:13]} (10. Ne4 $5 {[%cal Re4c5]} Qh5 11. Ng3 $14) 10... Bd7 {[%emt 0:05:38]} 11. Re1 {[%emt 0:03:09] [#]} Rc8 $146 {[%emt 0:04:01]} ({Predecessor:} 11... O-O 12. Ne4 Nxe4 13. Qxe4 Bf6 14. Be3 Qf5 15. Qxf5 exf5 16. Bg5 Bxg5 17. Nxg5 h6 {½-½ Hervas,F (1906)-Braakhuis,W (2316) IECC CL1-2003.12 email}) 12. Bd3 {[%emt 0:04:43]} Qh5 {[%emt 0:08:23]} 13. Ne4 {[%emt 0:08:21]} O-O {[%emt 0:13:52]} 14. Ng3 {[%emt 0:09:17]} Qa5 {[%emt 0:04:21]} 15. Bf4 {[%emt 0:06:08]} Nd5 {[%emt 0:08:44]} 16. Bd2 {[%emt 0:02:23]} (16. Qe4 $2 f5 17. Nxf5 (17. Qc4 $2 Nd8 $19) 17... exf5 $19) 16... Qc7 {[%emt 0:03:11]} 17. Rad1 {[%emt 0:04:03]} Rfd8 {[%emt 0:03:22]} 18. Ng5 {[%emt 0:09:26] White wants to mate with Qh5.} h6 {[%emt 0:11:56]} 19. Nxf7 {[%emt 0:11:41][%mdl 64] [#] Decoy} Kxf7 {[%emt 0:01:11]} 20. Qh5+ {[%emt 0:00:25]} (20. Qg4 Bf6 21. Bh7 (21. c4 $2 Nde7 $19) 21... Ne5 $17) 20... Kf8 {[%emt 0:03:09] Hoping for ...Be8.} (20... Kg8 $5 21. Bxh6 (21. Qg6 Ne5 $15) 21... Be8 $15) 21. Bxh6 $1 {[%emt 0:03:12]} Bf6 {[%emt 0:03:02]} (21... gxh6 {is a self mate.} 22. Qxh6+ Kf7 23. Bg6+ Kg8 24. Qh7+ Kf8 25. Qh8#) 22. Bc1 {[%emt 0:03:02] [#]} (22. Bg5 $1 $11 Nf4 23. Qh8+ Kf7 24. Qh4 Nxd3 25. Rxd3) 22... Ne5 {[%emt 0:01:32]} (22... Nf4 $1 $17 {[%cal Rf4h5]} 23. Qh7 (23. Bxf4 Qxf4 24. Bc2 Qh4 $17) 23... Be8) 23. Bc2 $11 {[%emt 0:02:09]} Be8 {[%emt 0:01:34][%cal Bd7e8,Be8g6,Bg6c2][%mdl 32]} 24. Qh8+ {[%emt 0:00:30]} Ke7 {[%emt 0:01:02]} (24... Kf7 $14) 25. f4 $2 {[%emt 0:00:59][%mdl 8192] White does not recover from this.} (25. Bg5 $1 $16 {is necessary to keep the advantage.} Bf7 26. Qxg7) 25... Bg6 {[%emt 0:02:30]} 26. Qxd8+ {[%emt 0:00:44]} Rxd8 {[%emt 0:00:21]} 27. fxe5 {[%emt 0:00:03]} Bxc2 {[%emt 0:01:18]} 28. exf6+ {[%emt 0:00:04]} Nxf6 {[%emt 0:01:48]} 29. Rxd8 {[%emt 0:01:32]} Qxd8 {[%emt 0:00:20]} 30. h3 {[%emt 0:00:12]} Qb6+ {[%emt 0:01:14]} 31. Kh2 {[%emt 0:00:36]} Qd6 {[%emt 0:01:23] ...Ne4 would be deadly.} 32. Bg5 {[%emt 0:01:03]} Kf7 {[%emt 0:00:58]} 33. Rf1 {[%emt 0:00:22]} Kg6 {[%emt 0:02:08]} 34. Bf4 {[%emt 0:00:11]} e5 {[%emt 0:00:43]} 35. Bc1 {[%emt 0:00:21]} Bd3 {[%emt 0:00:30]} 36. Rf2 {[%emt 0:00:34]} Ne4 {[%emt 0:01:22]} 37. Nxe4 {[%emt 0:00:13]} Bxe4 {[%emt 0:00:05]} 38. Be3 {[%emt 0:00:53]} a6 {[%emt 0:00:22]} 39. Rd2 {[%emt 0:00:12]} Qc7 {[%emt 0:00:55]} 40. a3 {[%emt 0:00:10]} Bc6 {[%emt 0:00:20]} 41. Kg3 {[%emt 0:00:00]} Kf5 {[%emt 0:00:00]} 42. Rf2+ {[%emt 0:00:00]} Ke4 {[%emt 0:00:00]} 43. Bc1 {[%emt 0:00:00]} Kd3 {[%emt 0:00:00]} 44. Rd2+ {[%emt 0:00:00]} Kc4 {[%emt 0:00:00] Threatens to win with ...e4+.} 45. Rf2 {[%emt 0:00:00]} Qd6 {[%emt 0:00:54]} 46. Kh2 {[%emt 0:00:00]} e4+ {[%emt 0:02:19]} 47. Bf4 {[%emt 0:00:00]} Qe6 {[%emt 0:05:26] White must now prevent ...e3.} 48. Be3 {[%emt 0:00:50]} Kd3 {[%emt 0:01:25] Weighted Error Value: White=0.38/Black=0.21 (precise)} 0-1

[Event "4NCL 2022-2023"]
[Site "Daventry"]
[Date "2023.01.14"]
[Round "3.40"]
[White "Varney, Zoe"]
[Black "Franco, Gaston"]
[Result "1/2-1/2"]
[ECO "B31"]
[WhiteElo "1954"]
[BlackElo "2051"]
[Annotator "TA"]
[PlyCount "98"]
[EventDate "2022.10.20"]
[EventType "team-tourn"]
[EventCountry "ENG"]
[SourceTitle "playchess.com"]
[Source "ChessBase"]
[SourceQuality "1"]
[TimeControl "40/6000+30:2400+30"]

{[%evp 10,98,25,12,22,16,58,20,44,20,62,39,39,35,31,31,75,75,64,54,50,62,79,89,93,83,96,92,109,94,202,87,171,170,296,266,314,209,1156,548,1113,1107,1408,1107,1075,1049,1417,1203,1114,1166,1187,1151,1126,437,430,195,193,205,219,156,158,89,118,23,27,0,83,0,32,8,22,0,76,0,30,7,7,11,6,0,0,0,0,0,0,0,0,0,0,0,0]} 1. e4 {[%emt 0:00:03]} c5 {[%emt 0:00:11]} 2. Nf3 {[%emt 0:00:12]} Nc6 {[%emt 0:00:05]} 3. Bb5 {[%emt 0:00:08]} g6 {[%emt 0:00:06]} 4. Bxc6 {[%emt 0:00:05]} dxc6 {[%emt 0:00:04]} 5. d3 {[%emt 0:00:12]} Bg7 {[%emt 0:00:06]} 6. h3 {[%emt 0:00:10]} b6 {[%emt 0:00:50] B31: Sicilian: 2...Nc6 3 Bb5 g6.} 7. O-O {[%emt 0:00:55]} Nh6 {[%emt 0:02:58]} 8. Re1 {[%emt 0:05:23] [#]} (8. a4 $5 {[%cal Ra4a5]}) 8... f6 $146 {[%emt 0:06:21]} ({Predecessor:} 8... O-O 9. a4 a5 10. Nbd2 Ba6 11. Nf1 e5 12. Bg5 f6 13. Bd2 Nf7 14. Ne3 Qd7 {0-1 Hansen,E (2606)-Belous,V (2532) Titled Tuesday intern op1 3rd March   blitz 2020 (8)}) 9. a4 {[%emt 0:07:11][%cal Oa4a5]} (9. e5 $5 {[%cal Re5f6]} O-O 10. a4 $11) 9... a5 {[%emt 0:00:28]} 10. Na3 {[%emt 0:01:14]} e5 {[%emt 0:04:32]} 11. c3 {[%emt 0:13:40][%cal Bc2c3,Bc3d4][%mdl 32]} Be6 {[%emt 0:04:23]} 12. d4 {[%emt 0:13:47]} cxd4 {[%emt 0:01:24]} 13. cxd4 {[%emt 0:00:12]} Nf7 {[%emt 0:04:28]} 14. Be3 {[%emt 0:09:17]} O-O {[%emt 0:12:17]} 15. Rc1 {[%emt 0:19:54]} Qc7 {[%emt 0:26:33]} 16. d5 {[%emt 0:17:14]} Bd7 {[%emt 0:00:20]} 17. dxc6 {[%emt 0:04:50]} Bxc6 {[%emt 0:00:03]} 18. Qb3 {[%emt 0:00:31]} Qb7 {[%emt 0:08:42]} 19. Nd2 {[%emt 0:02:58] White is much more active.} Ra6 {[%emt 0:14:31]} (19... Rfd8 $16 {was necessary.}) 20. Rc4 {[%emt 0:03:21]} (20. Nb5 $18) 20... Bd7 {[%emt 0:05:39]} (20... Rc8 $16) 21. Rc3 $18 {[%emt 0:02:52]} Rd8 {[%emt 0:05:01]} (21... Rc8 $142) 22. Rec1 {[%emt 0:00:53]} Bf8 {[%emt 0:01:18]} 23. Nb5 {[%emt 0:01:52] Repels Ra7. Rc7 is the strong threat.} f5 $2 {[%emt 0:06:35]} (23... Bc5 24. Bxc5 bxc5) 24. Bg5 {[%emt 0:02:03]} (24. Rc7 $142 Qc8 25. Rxc8 Rxc8 26. Rc7 Rxc7 {[%mdl 64] Remove Defender} 27. Nxc7) 24... Raa8 {[%emt 0:03:15]} 25. Rc7 {[%emt 0:02:28]} Qb8 {[%emt 0:00:02]} 26. Bxd8 {[%emt 0:00:41]} Qxd8 {[%emt 0:00:01]} 27. Nf3 {[%emt 0:00:33]} Kg7 {[%emt 0:02:46] [#]} 28. Rxd7 $1 {[%emt 0:00:58][%mdl 576] Clearance} Qxd7 {[%emt 0:00:02]} 29. Rc7 {[%emt 0:00:01]} Qe8 {[%emt 0:00:35] [#]} 30. Nxe5 $1 {[%emt 0:00:05][%mdl 576] Pin. Excellent horsemanship.} Be7 {[%emt 0:00:16] Black is weak on the light squares} 31. Nxf7 {[%emt 0:01:16]} (31. Qe6 $142 Kf8 32. Rxe7 Qxe7 33. Nd7+ Qxd7 34. Qxd7) 31... Qxf7 {[%emt 0:00:02]} 32. Qxf7+ {[%emt 0:00:43]} (32. Qc3+ $142 Kg8 33. exf5) 32... Kxf7 {[%emt 0:00:02]} 33. exf5 {[%emt 0:00:06]} gxf5 {[%emt 0:00:21][%mdl 4096] Endgame KRB-KRN} 34. Rb7 {[%emt 0:00:12][%cal Ob5d4] Strongly threatening Nd4!} Rd8 {[%emt 0:00:52] Dodges Nd4} 35. Rxb6 {[%emt 0:01:17]} (35. g3 $142) 35... Rd2 $16 {[%emt 0:02:05][%cal Oe7c5]} 36. Rb7 {[%emt 0:00:32]} ({White should try} 36. Nc3 $16) 36... Kf6 $1 $11 {[%emt 0:00:40]} 37. Rb6+ {[%emt 0:00:28]} (37. Rc7 $11) 37... Kf7 $1 $16 {[%emt 0:00:00]} 38. Rb7 {[%emt 0:00:17]} (38. Nc3 $16) 38... Kf6 $1 $14 {[%emt 0:00:03]} 39. Ra7 {[%emt 0:00:43]} Bb4 {[%emt 0:00:41]} 40. Ra6+ {[%emt 0:00:05]} Kf7 {[%emt 0:00:07]} (40... Ke5 $11 {keeps the balance.}) 41. Ra7+ {[%emt 0:00:00]} (41. b3 $16) 41... Kg6 {[%emt 0:00:00]} 42. Na3 {[%emt 0:01:25] Threatens to win with Nc4.} Rxb2 {[%emt 0:00:00] The position is equal.} (42... Bd6 $2 43. Kf1 Bb4 44. Nc4 $18) 43. Nc4 {[%emt 0:00:11][%csl LRa5,LRb2]} Ra2 {[%emt 0:00:00]} 44. Nxa5 {[%emt 0:02:58]} Ra1+ {[%emt 0:00:00]} 45. Kh2 {[%emt 0:00:07] aiming for Nc4.} Rxa4 {[%emt 0:00:00]} 46. Nc6 {[%emt 0:00:07]} Rxa7 {[%emt 0:00:00]} 47. Nxa7 {[%emt 0:00:05]} Bc5 {[%emt 0:00:00][%csl LRa7,LRf2]} 48. Nc6 {[%emt 0:00:34]} Bxf2 {[%emt 0:00:00]} 49. Ne5+ $1 {[%emt 0:01:06]} Kf6 {[%emt 0:00:00] Black escapes into a draw.   Weighted Error Value: White=0.70/Black=0.24 (precise)} 1/2-1/2

[Event "4NCL 2022-2023"]
[Site "Daventry"]
[Date "2023.01.14"]
[Round "3.41"]
[White "Wadsworth, Matthew J"]
[Black "Chow, Samuel"]
[Result "1-0"]
[ECO "A11"]
[WhiteElo "2477"]
[BlackElo "2318"]
[Annotator "TA"]
[PlyCount "155"]
[EventDate "2022.10.20"]
[EventType "team-tourn"]
[EventCountry "ENG"]
[SourceTitle "playchess.com"]
[Source "ChessBase"]
[SourceQuality "1"]
[TimeControl "40/6000+30:2400+30"]

{[%evp 16,155,30,23,19,18,29,1,6,6,5,0,3,-2,15,8,13,8,18,0,0,-17,-17,-17,-18,-22,-22,-36,-10,-6,0,-14,-7,-12,0,-22,-14,-35,0,0,0,0,0,0,0,-31,0,0,64,60,129,115,211,202,199,185,252,270,186,275,259,241,283,283,391,215,219,46,47,40,47,39,47,47,47,29,54,54,54,54,54,39,39,39,39,54,54,54,54,39,54,54,91,91,91,91,91,91,91,91,92,91,186,95,530,539,527,520,494,492,482,481,478,450,482,468,1698,3435,29974,29972,29976,29977,29980,29981,29980,29978,5834,1929,1788,1815,1751,1446,1603,1470,2549,2278,29984,29985,29986,29987,29987,29988]} 1. c4 {[%emt 0:00:03]} Nf6 {[%emt 0:00:19]} 2. Nf3 {[%emt 0:00:08]} g6 {[%emt 0:00:36]} 3. g3 {[%emt 0:00:08]} Bg7 {[%emt 0:00:25]} 4. Bg2 {[%emt 0:00:23]} O-O {[%emt 0:00:24]} 5. O-O {[%emt 0:00:13]} c6 {[%emt 0:01:01]} 6. b3 {[%emt 0:00:34]} Ne4 {[%emt 0:01:09]} 7. d4 {[%emt 0:00:08]} d5 {[%emt 0:00:10]} 8. Bb2 {[%emt 0:03:14]} a5 {[%emt 0:01:08]} 9. Nc3 {[%emt 0:05:37]} Nxc3 {[%emt 0:03:38] A11: English Opening: 1...c6.} 10. Bxc3 {[%emt 0:00:02]} Be6 {[%emt 0:02:09]} 11. Qd3 {[%emt 0:26:30]} Bf5 {[%emt 0:06:53] The position is equal.} 12. Qd2 {[%emt 0:02:06]} Be4 {[%emt 0:02:12] [#]} 13. Rfc1 $146 {[%emt 0:05:53]} ({Predecessor:} 13. Bh3 Bxf3 14. exf3 e6 15. Rab1 Qc7 16. Rfc1 Rd8 17. f4 Nd7 18. Bg2 Nf6 19. Qe1 Rd7 20. Bb2 {½-½ Shafigullina,Z (2296)-Voit,D (2343) RUS-ch Higher League (Women) 70th 2020 (4)}) 13... Nd7 {[%emt 0:02:17]} 14. Bf1 {[%emt 0:08:11]} Bxf3 {[%emt 0:01:19]} 15. exf3 {[%emt 0:00:07]} e6 {[%emt 0:04:05]} 16. a4 {[%emt 0:05:43]} Re8 {[%emt 0:05:11]} 17. Re1 {[%emt 0:04:21]} b6 {[%emt 0:03:52]} 18. f4 {[%emt 0:04:05]} Nf6 {[%emt 0:01:50]} 19. Bg2 {[%emt 0:01:23] Against Ne4} Re7 {[%emt 0:01:24]} 20. Rac1 {[%emt 0:05:32]} Rd7 {[%emt 0:01:45]} 21. Bb2 {[%emt 0:07:46]} Bf8 {[%emt 0:01:01]} 22. Qc2 {[%emt 0:04:17]} Rc8 {[%emt 0:01:06]} 23. Red1 {[%emt 0:01:27]} Rcc7 {[%emt 0:03:17]} 24. Qe2 {[%emt 0:01:27]} Rc8 {[%emt 0:02:53]} 25. h4 {[%emt 0:01:12]} h5 {[%emt 0:02:51]} 26. Bf3 {[%emt 0:00:53]} Qc7 {[%emt 0:04:32]} 27. Rc2 {[%emt 0:02:13]} Qd8 {[%emt 0:02:04]} 28. Rdc1 {[%emt 0:02:40]} Rdc7 {[%emt 0:06:19]} 29. Kg2 $1 {[%emt 0:01:56]} Ne8 {[%emt 0:03:24]} 30. Bc3 {[%emt 0:04:17]} Rd7 {[%emt 0:03:04]} 31. Bd2 {[%emt 0:03:08] Hoping for cxd5.} Ba3 {[%emt 0:08:09]} (31... dxc4 $11 32. Rxc4 c5) 32. cxd5 $1 $14 {[%emt 0:02:09]} Bxc1 {[%emt 0:10:29]} (32... exd5 $14 33. Ra1 Bf8) 33. dxe6 $16 {[%emt 0:00:05]} Re7 {[%emt 0:07:15]} (33... fxe6 $16 34. Rxc1 (34. Qxe6+ Kh7 $14) 34... Ng7) 34. exf7+ $18 {[%emt 0:00:19]} (34. Bxc1 $6 Rxe6 35. Qa6 Nd6 $14) 34... Kg7 {[%emt 0:01:07]} 35. fxe8=Q {[%emt 0:01:33]} (35. fxe8=R $6 Rxe8 36. Qd3 Bxd2 37. Rxd2 c5 $16) 35... Qxe8 {[%emt 0:04:15]} (35... Rxe8 $142 36. Be3 Bxe3 37. fxe3 Qf6) 36. Qa6 {[%emt 0:00:17]} Bxd2 {[%emt 0:00:06]} 37. Rxd2 {[%emt 0:00:04]} Qd8 {[%emt 0:01:24]} 38. d5 {[%emt 0:00:55]} cxd5 {[%emt 0:06:22]} 39. Rxd5 {[%emt 0:01:12]} Qc7 {[%emt 0:00:16]} 40. f5 {[%emt 0:04:13]} (40. Rg5 $142) 40... Rf8 {[%emt 0:05:48] [#]} 41. Qd3 {[%emt 0:43:54]} ({White must play} 41. fxg6 $1 $18 {Qd3 is the strong threat.} Qc2 42. Qc4 (42. Rxh5 $2 Rxf3 43. Qxb6 Rxf2+ 44. Qxf2 Re2 $19) 42... Qxc4 43. bxc4) 41... Rxf5 $14 {[%emt 0:00:00]} 42. Rxf5 {[%emt 0:00:00]} gxf5 {[%emt 0:00:00]} 43. Bxh5 {[%emt 0:00:00][%mdl 4096] Endgame KQR-KQB} Qe5 {[%emt 0:00:00]} 44. Bf3 {[%emt 0:00:00]} Qf6 {[%emt 0:00:00]} 45. h5 {[%emt 0:00:00]} f4 {[%emt 0:05:18]} 46. g4 $1 {[%emt 0:00:00]} Kh6 {[%emt 0:03:28]} 47. Qd8 {[%emt 0:00:00]} Re6 {[%emt 0:01:02]} 48. Qg8 {[%emt 0:00:00]} Re5 {[%emt 0:01:01]} 49. Kh3 {[%emt 0:00:00][%cal Of3e4] White wants to mate with Be4!} Rg5 {[%emt 0:00:23]} 50. Qb8 {[%emt 0:00:00]} Re5 {[%emt 0:00:46]} 51. Qb7 {[%emt 0:00:00]} Qe6 {[%emt 0:04:37][%csl LRb3,LRh5]} 52. Kg2 {[%emt 0:00:00]} Qf6 {[%emt 0:03:34]} 53. Qa8 {[%emt 0:00:00]} Kg7 {[%emt 0:03:28]} 54. Be4 {[%emt 0:00:00]} Kh6 {[%emt 0:02:43]} 55. Kh3 {[%emt 0:00:00][%cal Oa8g8] And now Qg8! would win.} Kg7 {[%emt 0:00:31] Prevents Qg8+.} 56. Qb7+ {[%emt 0:00:00]} Re7 {[%emt 0:03:20]} 57. Qd5 {[%emt 0:00:00] Black must now prevent g5. Dancing on a razor blade.} Re5 {[%emt 0:01:02]} 58. Qa8 {[%emt 0:00:00] White is more active.} Qe6 {[%emt 0:02:45] [#]} (58... Re7 $16 59. f3 Kh6) 59. Qb7+ {[%emt 0:00:00]} ({White should play} 59. Bf5 $1 $18 {[%cal Rf5e6]} Rxf5 60. gxf5 Qxf5+ 61. Kh4 Qf6+ 62. Kg4) 59... Kf8 $2 {[%emt 0:01:08][%mdl 8192] This move loses the game for Black.} (59... Qe7 $2 60. Qxe7+ Rxe7 61. f3 $18) (59... Kf6 $16 {is a better chance.} 60. Bg6 (60. Bf5 Rxf5 61. gxf5 Qxf5+ 62. Kg2 Qg4+ 63. Kf1 Qd1+ 64. Kg2 Qg4+ 65. Kf1 Qd1+ 66. Kg2 Qg4+ $11) 60... Kg5) 60. Qb8+ $18 {[%emt 0:00:00]} Kg7 {[%emt 0:00:26]} 61. Qc7+ {[%emt 0:00:00]} Kf8 {[%emt 0:03:54]} 62. Qd8+ {[%emt 0:00:00]} Kg7 {[%emt 0:01:46]} 63. Bf5 {[%emt 0:00:51]} Qf6 {[%emt 0:00:33]} 64. Qd4 {[%emt 0:04:19]} Re1 {[%emt 0:05:53]} 65. Qxf4 {[%emt 0:00:11] Threatens to win with g5.} ({Weaker is} 65. h6+ Kf7 66. Qxf6+ (66. Qxf4 Qxh6+ 67. Qxh6 Rh1+ 68. Kg3 Rxh6 $14) 66... Kxf6 $16) 65... Rh1+ {[%emt 0:02:19]} (65... Rg1 $142 66. Qd2 Qc6 67. Qd4+ Qf6) 66. Kg2 {[%emt 0:07:51]} Rh4 {[%emt 0:01:31]} 67. Qc7+ {[%emt 0:00:00]} Kf8 {[%emt 0:00:26]} 68. Kg3 {[%emt 0:00:00]} Kg8 {[%emt 0:00:47]} 69. Qc8+ {[%emt 0:00:00]} Kg7 {[%emt 0:00:31]} 70. Qd7+ {[%emt 0:00:00]} Kf8 {[%emt 0:00:08]} 71. Qe6 {[%emt 0:00:00]} (71. f4 $142 Rh1 72. Qc8+ Ke7 73. Qb7+ Kd6 74. Qxh1) 71... Qxe6 {[%emt 0:01:01]} 72. Bxe6 {[%emt 0:00:00] KR-KB} Rh1 {[%emt 0:00:04]} 73. f4 {[%emt 0:00:00]} Ke7 {[%emt 0:00:15]} 74. Bc4 {[%emt 0:00:00]} Kd6 {[%emt 0:00:07]} 75. Kg2 {[%emt 0:00:00]} Rh4 {[%emt 0:00:21]} 76. Be2 {[%emt 0:00:00] White mates.} Kc5 {[%emt 0:00:09]} 77. Bf3 {[%emt 0:00:03]} Kb4 {[%emt 0:00:04]} 78. Kg3 {[%emt 0:00:06] Weighted Error Value: White=0.13 (very precise) /Black=0.22 (precise)} 1-0

[Event "4NCL 2022-2023"]
[Site "Daventry"]
[Date "2023.01.14"]
[Round "3.42"]
[White "Wall, Tim P"]
[Black "Speelman, Jon S"]
[Result "0-1"]
[ECO "C00"]
[WhiteElo "2258"]
[BlackElo "2500"]
[Annotator "TA"]
[PlyCount "78"]
[EventDate "2022.10.20"]
[EventType "team-tourn"]
[EventCountry "ENG"]
[SourceTitle "playchess.com"]
[Source "ChessBase"]
[SourceQuality "1"]
[TimeControl "40/6000+30:2400+30"]

{[%evp 9,78,-7,-6,0,0,0,0,0,0,0,8,14,14,8,13,10,10,12,35,46,71,71,62,51,58,39,40,6,7,0,7,0,0,0,0,0,0,0,0,0,0,0,0,0,13,0,0,-16,0,-60,40,28,35,0,0,0,0,0,0,-874,-874,-874,-838,-838,-777,-29989,-29990,-29993,-29994,-29994,-29995]} 1. Nc3 {[%emt 0:05:58]} d5 {[%emt 0:03:36]} 2. e4 {[%emt 0:00:12]} e6 {[%emt 0:00:39]} 3. Nf3 {[%emt 0:00:28]} Nf6 {[%emt 0:00:07]} 4. e5 {[%emt 0:00:33]} Nfd7 {[%emt 0:00:09][%cal Bf6d7,Bd7c5,Bc5d3][%mdl 32]} 5. Ne2 {[%emt 0:00:56]} c5 {[%emt 0:00:39]} 6. c3 {[%emt 0:00:36] C00: French: Unusual White 2nd moves.} c4 {[%emt 0:08:37]} 7. d4 {[%emt 0:03:55]} cxd3 {[%emt 0:00:05]} 8. Ned4 {[%emt 0:00:41] The position is equal.} Nc6 {[%emt 0:01:11]} 9. Bf4 {[%emt 0:06:40]} ({Reject} 9. Qxd3 Ndxe5 10. Nxe5 Nxe5 $15) (9. Nxc6 {simplifies} bxc6 10. Bxd3 Qb6 11. O-O) 9... Nc5 {[%emt 0:02:32]} 10. Bxd3 {[%emt 0:04:26]} Nxd3+ {[%emt 0:00:56]} 11. Qxd3 {[%emt 0:00:09] [#]} Bd7 $146 {[%emt 0:01:58]} ({Predecessor:} 11... Be7 12. h4 Nxd4 13. Nxd4 Bd7 14. Qg3 Rg8 15. Bg5 f6 16. Bf4 Qb6 17. exf6 Bxf6 {0-1 Schinkowski,C (2165)-Nedic,D (2328) Kiel op-A 26th 2013 (5)}) 12. O-O {[%emt 0:07:01]} Be7 {[%emt 0:00:17]} 13. Rfe1 {[%emt 0:06:13]} g5 {[%emt 0:04:59]} 14. Be3 {[%emt 0:07:23]} g4 {[%emt 0:01:00]} 15. Nxc6 {[%emt 0:00:41]} bxc6 {[%emt 0:00:07]} 16. Nd2 {[%emt 0:00:49]} c5 {[%emt 0:13:28]} 17. c4 {[%emt 0:03:23]} Bc6 {[%emt 0:02:38]} 18. Rac1 {[%emt 0:08:18]} d4 {[%emt 0:02:34]} 19. Bf4 {[%emt 0:06:52][%cal Ob2b4]} Qb6 {[%emt 0:00:45]} 20. Rb1 {[%emt 0:02:33]} Qb7 {[%emt 0:01:26]} 21. Ne4 {[%emt 0:01:00]} Bxe4 {[%emt 0:11:23]} 22. Rxe4 {[%emt 0:06:25][%cal Ob2b4]} h5 {[%emt 0:00:16]} 23. Bd2 {[%emt 0:02:34]} a5 {[%emt 0:00:48]} 24. a3 {[%emt 0:02:10]} a4 {[%emt 0:01:26]} 25. b4 {[%emt 0:02:52]} axb3 {[%emt 0:01:07]} 26. Rxb3 {[%emt 0:00:16]} Qc6 {[%emt 0:01:46]} 27. Qb1 {[%emt 0:06:46]} Bd8 {[%emt 0:00:07]} 28. Bc1 {[%emt 0:01:43]} Rg8 {[%emt 0:04:50][%cal Bh8g8,Bg8b8,Bb8b3][%mdl 32]} 29. h3 {[%emt 0:05:16]} ({Better is} 29. f3 $11) 29... Bc7 {[%emt 0:01:41]} (29... gxh3 $1 $15 30. Rxh3 Ra4) 30. h4 $1 $14 {[%emt 0:04:50]} Kd7 {[%emt 0:06:38][%cal Be8d7,Bd7c8,Bc8b7][%mdl 32]} 31. Bg5 {[%emt 0:02:37] [#] Rf4 is the strong threat.} (31. Rb5 $5 {[%cal Re4f4]}) 31... Rgb8 $36 {[%emt 0:01:33][%mdl 2048] Strongly threatening ...Rxb3. Black has the initiative.} 32. Rf4 {[%emt 0:03:11]} f5 {[%emt 0:01:29]} (32... Bxe5 {leads to mate.} 33. Rxf7+ Kc8 34. Rf8+ Kc7 35. Rbxb8) 33. exf6 {[%emt 0:01:59]} Rxb3 {[%emt 0:00:07]} 34. Qh7+ {[%emt 0:02:10][%mdl 8192] [#]} (34. Qxb3 $11 Bxf4 35. Bxf4) 34... Kc8 $1 $19 {[%emt 0:01:10]} 35. f7 {[%emt 0:00:40]} Raxa3 {[%emt 0:02:38]} 36. f8=Q+ {[%emt 0:00:41]} Kb7 {[%emt 0:00:03] ( -> ...Ra1+)} 37. f3 {[%emt 0:04:27]} g3 {[%emt 0:00:25] Black mates.} 38. Kf1 {[%emt 0:00:41]} Ra1+ {[%emt 0:00:09]} 39. Ke2 {[%emt 0:00:07]} Rb2+ {[%emt 0:00:04][%mdl 64] Skewer. Artfully played by Speelman.   Weighted Error Value: White=0.32/Black=0.08 (flawless)} 0-1